Workbook

Sheet Nordhavnen
A1: Vandområde | C1: Nordhavnen | BH1: Vandområde | BJ1: Damhusåen
A3: Udlednings nr. | C3: UØ32 | D3: UØ37 | E3: 1000028529 | F3: 1000037357 | G3: 1000044032 | H3: UØ31 | I3: UØ32.3 | J3: UØ36 | K3: UØ36.1 | L3: UØ36.2 | M3: UØ36.3 | N3: UØX4 | O3: UØX10 | BH3: Udlednings nr. | BJ3: UD10b | BK3: UD10d | BL3: UD11b | BM3: UD12 | BN3: UD13 | BO3: UD14 | BP3: UD15 | BQ3: UD16 | BR3: UD17 | BS3: UD18 | BT3: UD19b | BU3: UD20b | BV3: UD21 | BW3: UD21b | BX3: UD24 | BY3: Sum
A4: Adresse | C4: Colosseum | D4: Amerikakaj | E4: Marmorvej | F4: Gittervej | G4: Sundkaj | H4: Tømmerkaj | I4: Banekaj | J4: Pakhusvej | K4: Langelinie S | L4: Langelinie C | M4: Langelinie N | N4: OS til Nordhavnen 2028 | O4: OS til Nordhavnen 20XX | P4: SUM | BH4: Adresse | BJ4: Nødoverløb Damhusåens renseanlæg | BK4: Hovedoverløb Damhus-ledning | BL4: Åhaven | BM4: Sønderkær | BN4: Vigerslev Allé | BO4: Gårdstedet | BP4: Heldbovej | BQ4: Lykkebovej | BR4: Landlystvej | BS4: Skyttegårdsvej | BT4: Sandhusvej | BU4: Hvidovre station | BV4: Vigerslev-parken N for Dæmningen | BW4: Nødoverløb ved Torpedo-bygværket | BX4: Roskildevej | BY4: -
A5: Kloakeringstype | B5: Status | C5: Fælles | D5: Fælles | E5: Separat | F5: Separat | G5: Separat | H5: Separat | I5: Separat | J5: Separat | K5: Separat | L5: Separat | M5: Separat | N5: - | O5: - | P5: - | BH5: Kloakeringstype | BI5: Status | BJ5: Fælles | BK5: Fælles | BL5: Fælles | BM5: Fælles | BN5: Fælles | BO5: Fælles | BP5: Fælles | BQ5: Fælles | BR5: Fælles | BS5: Fælles | BT5: Fælles | BU5: Fælles | BV5: Fælles | BW5: Fælles | BX5: Fælles | BY5: -
B6: Plan | C6: Fælles | D6: Fælles | E6: Separat | F6: Separat | G6: Separat | H6: Separat | I6: Separat | J6: Separat | K6: Separat | L6: Separat | M6: Separat | N6: Separat | O6: - | P6: - | BI6: Plan | BJ6: Fælles | BK6: Fælles | BL6: Fælles | BM6: Fælles | BN6: Fælles | BO6: Fælles | BP6: Fælles | BQ6: Fælles | BR6: Fælles | BS6: Fælles | BT6: Fælles | BU6: Fælles | BV6: Fælles | BW6: Fælles | BX6: Fælles | BY6: -
B7: Strategi | C7: Fælles | D7: Fælles | E7: Separat | F7: Separat | G7: Separat | H7: Separat | I7: Separat | J7: Separat | K7: Separat | L7: Separat | M7: Separat | N7: Separat | O7: Separat | P7: - | BI7: Strategi | BJ7: Fælles | BK7: Fælles | BL7: Fælles | BM7: Fælles | BN7: Fælles | BO7: Fælles | BP7: Fælles | BQ7: Fælles | BR7: Fælles | BS7: Fælles | BT7: Fælles | BU7: Fælles | BV7: Fælles | BW7: Fælles | BX7: Fælles | BY7: -
A8: Reduceret areal ha | B8: Status | C8: 242.156427 | D8: 18.750738 | E8: 1 | F8: 1 | G8: 1 | H8: 1 | I8: 53.61 | J8: 1 | K8: 1.44 | L8: 0 | M8: 1.95 | N8: - | O8: - | P8: =SUM(Tabel114[[#This Row],[Colosseum]:[OS til Nordhavnen 20XX]]) -> 322.907165 | BH8: Reduceret areal ha | BI8: Status | BJ8: 62.09627 | BK8: 0 | BL8: 4.926299 | BM8: 13.292068 | BN8: 9.063189 | BO8: 1.454076 | BP8: 1.523395 | BQ8: 3.503314 | BR8: 1.93898 | BS8: 4.850912 | BT8: 2.3 | BU8: 1.07056 | BV8: 284.5 | BW8: 0 | BX8: 0 | BY8: =SUM(BJ8:BX8) -> 390.519063
B9: Plan | C9: 242.156427 | D9: 18.750738 | E9: 1 | F9: 1 | G9: 1 | H9: 1 | I9: 53.61 | J9: 1 | K9: 1.44 | L9: 0 | M9: 1.95 | N9: 14.76 | O9: - | P9: =SUM(Tabel114[[#This Row],[Colosseum]:[OS til Nordhavnen 20XX]]) -> 337.667165 | BI9: Plan | BJ9: 62.09627 | BK9: 0 | BL9: 4.926299 | BM9: 13.292068 | BN9: 9.063189 | BO9: 1.454076 | BP9: 1.523395 | BQ9: 3.503314 | BR9: 1.93898 | BS9: 4.850912 | BT9: 2.3 | BU9: 1.07056 | BV9: 284.5 | BW9: 0 | BX9: 0 | BY9: 390.519063
B10: Strategi | C10: 242.156427 | D10: 18.750738 | E10: 1 | F10: 1 | G10: 1 | H10: 1 | I10: 53.61 | J10: 1 | K10: 1.44 | L10: 0 | M10: 1.95 | N10: 37.8 | O10: 73.8 | P10: =SUM(Tabel114[[#This Row],[Colosseum]:[OS til Nordhavnen 20XX]]) -> 434.507165 | BI10: Strategi | BJ10: 62.09627 | BK10: 0 | BL10: 4.926299 | BM10: 13.292068 | BN10: 9.063189 | BO10: 1.454076 | BP10: 1.523395 | BQ10: 3.503314 | BR10: 1.93898 | BS10: 4.850912 | BT10: 2.3 | BU10: 1.07056 | BV10: 284.5 | BW10: 0 | BX10: 0 | BY10: 390.519063
A11: Maks udledning l/s | B11: Status | C11: 21000 | D11: 1000 | E11: 60 | F11: 60 | G11: 60 | H11: 60 | I11: 871.56 | J11: 60 | K11: 233.28 | L11: Nødoverløb | M11: 315.9 | N11: - | O11: - | P11: =SUM(Tabel114[[#This Row],[Colosseum]:[OS til Nordhavnen 20XX]]) -> 23720.74 | BH11: Maks udledning l/s | BI11: Status | BJ11: 5000 | BK11: 5000 | BL11: 700 | BM11: 3000 | BN11: 1200 | BO11: 500 | BP11: 100 | BQ11: 300 | BR11: 300 | BS11: 500 | BT11: 500 | BU11: 200 | BV11: 1500 | BW11: 0 | BX11: 1000 | BY11: 19800
B12: Plan | C12: 21000 | D12: 1000 | E12: 60 | F12: 60 | G12: 60 | H12: 60 | I12: 871.56 | J12: 60 | K12: 233.28 | L12: Nødoverløb | M12: 315.9 | N12: 890 | O12: - | P12: =SUM(Tabel114[[#This Row],[Colosseum]:[OS til Nordhavnen 20XX]]) -> 24610.74 | BI12: Plan | BJ12: 5000 | BK12: 5000 | BL12: 700 | BM12: 3000 | BN12: 1200 | BO12: 500 | BP12: 100 | BQ12: 300 | BR12: 300 | BS12: 500 | BT12: 500 | BU12: 200 | BV12: 1500 | BW12: 0 | BX12: 1000 | BY12: 19800
B13: Strategi | C13: 21000 | D13: 1000 | E13: 60 | F13: 60 | G13: 60 | H13: 60 | I13: 871.56 | J13: 60 | K13: 233.28 | L13: Nødoverløb | M13: 315.9 | N13: 2270 | O13: 4430 | P13: =SUM(Tabel114[[#This Row],[Colosseum]:[OS til Nordhavnen 20XX]]) -> 30420.74 | BI13: Strategi | BJ13: 5000 | BK13: 5000 | BL13: 700 | BM13: 3000 | BN13: 1200 | BO13: 500 | BP13: 100 | BQ13: 300 | BR13: 300 | BS13: 500 | BT13: 500 | BU13: 200 | BV13: 1500 | BW13: 0 | BX13: 1000 | BY13: 19800
A14: Overløbshyppighed antal/år | B14: Status | C14: 3 | D14: 8 | N14: - | O14: - | P14: =SUM(Tabel114[[#This Row],[Colosseum]:[OS til Nordhavnen 20XX]]) -> 11 | BH14: Overløbshyppighed antal/år | BI14: Status | BJ14: 2 | BK14: 1 | BL14: 0.5 | BM14: 0.1 | BN14: 0.1 | BO14: 0.1 | BP14: 0.1 | BQ14: 0.1 | BR14: 0.25 | BS14: 0.3 | BT14: 0.1 | BU14: 0.1 | BV14: 0.2 | BW14: 0 | BX14: 13 | BY14: -
B15: Plan | C15: 3 | D15: 7 | E15: 0 | F15: 0 | G15: 0 | H15: 0 | I15: 0 | J15: 0 | K15: 0 | M15: 0 | N15: 0 | O15: - | P15: =SUM(Tabel114[[#This Row],[Colosseum]:[OS til Nordhavnen 20XX]]) -> 10 | BI15: Plan | BJ15: 2 | BK15: 1 | BL15: 0.5 | BM15: 0.1 | BN15: 0.1 | BO15: 0.1 | BP15: 0.1 | BQ15: 0.1 | BR15: 0.25 | BS15: 0.3 | BT15: 0.1 | BU15: 0.1 | BV15: 0.2 | BW15: 0 | BX15: 13 | BY15: -
B16: Strategi | C16: 1 | D16: 4 | N16: 0 | O16: 0 | P16: =SUM(Tabel114[[#This Row],[Colosseum]:[OS til Nordhavnen 20XX]]) -> 5 | BI16: Strategi | BJ16: 1 | BK16: 0.1 | BL16: 0.05 | BM16: 0.01 | BN16: 0.01 | BO16: 0.01 | BP16: 0.01 | BQ16: 0.01 | BR16: 0.025 | BS16: 0.03 | BT16: 0.01 | BU16: 0.01 | BV16: 0.02 | BW16: 0 | BX16: 10 | BY16: -
A17: Vand m3/år | B17: Status | C17: 135123 | D17: 17405 | E17: 3556.603774 | F17: 3556.603774 | G17: 3402.492669 | H17: 3556.603774 | I17: 194931.4014 | J17: 3543.202033 | K17: 5102.210928 | L17: 0 | M17: 6909.243964 | N17: - | O17: - | P17: =SUM(Tabel114[[#This Row],[Colosseum]:[OS til Nordhavnen 20XX]]) -> 377086.3623 | BH17: Vand m3/år | BI17: Status | BJ17: 3408 | BK17: 15000 | BL17: 500 | BM17: 1000 | BN17: 100 | BO17: 100 | BP17: 100 | BQ17: 100 | BR17: 500 | BS17: 100 | BT17: 100 | BU17: 100 | BV17: 500 | BW17: 0 | BX17: 8734 | BY17: =SUM(BJ17:BX17) -> 30342
B18: Plan | C18: 116715.6579 | D18: 15721.3514 | E18: 3556.603774 | F18: 3556.603774 | G18: 3402.492669 | H18: 3556.603774 | I18: 194931.4014 | J18: 3543.202033 | K18: 5102.210928 | L18: 0 | M18: 6909.243964 | N18: 81000 | O18: - | P18: =SUM(Tabel114[[#This Row],[Colosseum]:[OS til Nordhavnen 20XX]]) -> 437995.3716 | BI18: Plan | BJ18: 3408 | BK18: 15000 | BL18: 500 | BM18: 1000 | BN18: 100 | BO18: 100 | BP18: 100 | BQ18: 100 | BR18: 500 | BS18: 100 | BT18: 100 | BU18: 100 | BV18: 500 | BW18: 0 | BX18: 8734 | BY18: 30342
B19: Strategi | C19: 6931.25 | D19: 6962 | E19: 3734.433962 | F19: 3734.433962 | G19: 3572.617302 | H19: 3734.433962 | I19: 204677.9715 | J19: 3720.362135 | K19: 5357.321474 | L19: 0 | M19: 7254.706163 | N19: 130000 | O19: 260000 | P19: =SUM(Tabel114[[#This Row],[Colosseum]:[OS til Nordhavnen 20XX]]) -> 639679.5304 | BI19: Strategi | BJ19: 1704 | BK19: 1500 | BL19: 50 | BM19: 100 | BN19: 10 | BO19: 10 | BP19: 10 | BQ19: 10 | BR19: 50 | BS19: 10 | BT19: 10 | BU19: 10 | BV19: 50 | BW19: 0 | BX19: 780 | BY19: 4304
A20: COD kg/år | B20: Status | C20: 6756.15 | D20: 870.25 | E20: 569.0566038 | F20: 569.0566038 | G20: 544.398827 | H20: 569.0566038 | I20: 31189.02422 | J20: 566.9123253 | K20: 816.3537484 | L20: 0 | M20: 1105.479034 | N20: - | O20: - | P20: =SUM(Tabel114[[#This Row],[Colosseum]:[OS til Nordhavnen 20XX]]) -> 43555.73797 | BH20: COD kg/år | BI20: Status | BJ20: 170 | BK20: 750 | BL20: 25 | BM20: 50 | BN20: 5 | BO20: 5 | BP20: 5 | BQ20: 5 | BR20: 25 | BS20: 5 | BT20: 5 | BU20: 5 | BV20: 25 | BW20: 0 | BX20: 437 | BY20: 1517
B21: Plan | C21: 5835.782897 | D21: 786.0675701 | E21: 569.0566038 | F21: 569.0566038 | G21: 544.398827 | H21: 569.0566038 | I21: 31189.02422 | J21: 566.9123253 | K21: 816.3537484 | L21: 0 | M21: 1105.479034 | N21: 12960 | O21: - | P21: =SUM(Tabel114[[#This Row],[Colosseum]:[OS til Nordhavnen 20XX]]) -> 55511.18844 | BI21: Plan | BJ21: 170 | BK21: 750 | BL21: 25 | BM21: 50 | BN21: 5 | BO21: 5 | BP21: 5 | BQ21: 5 | BR21: 25 | BS21: 5 | BT21: 5 | BU21: 5 | BV21: 25 | BW21: 0 | BX21: 437 | BY21: 1517
B22: Strategi | C22: 346.5625 | D22: 347.0625 | E22: 597.509434 | F22: 597.509434 | G22: 571.6187683 | H22: 597.509434 | I22: 32748.47543 | J22: 595.2579416 | K22: 857.1714358 | L22: 0 | M22: 1160.752986 | N22: 20800 | O22: 41600 | P22: =SUM(Tabel114[[#This Row],[Colosseum]:[OS til Nordhavnen 20XX]]) -> 100819.4299 | BI22: Strategi | BJ22: 85 | BK22: 75 | BL22: 2 | BM22: 5.9 | BN22: 0.5 | BO22: 0.5 | BP22: 0.5 | BQ22: 0.5 | BR22: 2.5 | BS22: 0.5 | BT22: 0.5 | BU22: 0.5 | BV22: 2.5 | BW22: 0 | BX22: 39 | BY22: 215.4
A23: Total N kg/år | B23: Status | C23: 270.246 | D23: 34.81 | E23: 35.56603774 | F23: 35.56603774 | G23: 34.02492669 | H23: 35.56603774 | I23: 1949.314014 | J23: 35.43202033 | K23: 51.02210928 | L23: 0 | M23: 69.09243964 | N23: - | O23: - | P23: =SUM(Tabel114[[#This Row],[Colosseum]:[OS til Nordhavnen 20XX]]) -> 2550.639623 | BH23: Total N kg/år | BI23: Status | BJ23: 6.8 | BK23: 30 | BL23: 1 | BM23: 2 | BN23: 0.2 | BO23: 0.2 | BP23: 0.2 | BQ23: 0.2 | BR23: 1 | BS23: 0.2 | BT23: 0.2 | BU23: 0.2 | BV23: 1 | BW23: 0 | BX23: 17.5 | BY23: 60.7
B24: Plan | C24: 233.4313159 | D24: 31.4427028 | E24: 35.56603774 | F24: 35.56603774 | G24: 34.02492669 | H24: 35.56603774 | I24: 1949.314014 | J24: 35.43202033 | K24: 51.02210928 | L24: 0 | M24: 69.09243964 | N24: 810 | O24: - | P24: =SUM(Tabel114[[#This Row],[Colosseum]:[OS til Nordhavnen 20XX]]) -> 3320.457642 | BI24: Plan | BJ24: 6.8 | BK24: 30 | BL24: 1 | BM24: 2 | BN24: 0.2 | BO24: 0.2 | BP24: 0.2 | BQ24: 0.2 | BR24: 1 | BS24: 0.2 | BT24: 0.2 | BU24: 0.2 | BV24: 1 | BW24: 0 | BX24: 17.5 | BY24: 60.7
B25: Strategi | C25: 13.8625 | D25: 13.8825 | E25: 37.34433962 | F25: 37.34433962 | G25: 35.72617302 | H25: 37.34433962 | I25: 2046.779715 | J25: 37.20362135 | K25: 53.57321474 | L25: 0 | M25: 72.54706163 | N25: 1300 | O25: 2600 | P25: =SUM(Tabel114[[#This Row],[Colosseum]:[OS til Nordhavnen 20XX]]) -> 6285.607804 | BI25: Strategi | BJ25: 3.4 | BK25: 3 | BL25: 0.08 | BM25: 0.2 | BN25: 0.02 | BO25: 0.02 | BP25: 0.02 | BQ25: 0.02 | BR25: 0.1 | BS25: 0.02 | BT25: 0.02 | BU25: 0.02 | BV25: 0.1 | BW25: 0 | BX25: 1.6 | BY25: 8.62
A26: Total P kg/år | B26: Status | C26: 67.5615 | D26: 8.7025 | E26: 8.891509434 | F26: 8.891509434 | G26: 8.506231672 | H26: 8.891509434 | I26: 487.3285035 | J26: 8.858005083 | K26: 12.75552732 | L26: 0 | M26: 17.27310991 | N26: - | O26: - | P26: =SUM(Tabel114[[#This Row],[Colosseum]:[OS til Nordhavnen 20XX]]) -> 637.6599057 | BH26: Total P kg/år | BI26: Status | BJ26: 1.7 | BK26: 7.5 | BL26: 0.25 | BM26: 0.5 | BN26: 0.05 | BO26: 0.05 | BP26: 0.05 | BQ26: 0.05 | BR26: 0.25 | BS26: 0.05 | BT26: 0.05 | BU26: 0.05 | BV26: 0.25 | BW26: 0 | BX26: 4.4 | BY26: 15.2
B27: Plan | C27: 58.35782897 | D27: 7.860675701 | E27: 8.891509434 | F27: 8.891509434 | G27: 8.506231672 | H27: 8.891509434 | I27: 487.3285035 | J27: 8.858005083 | K27: 12.75552732 | L27: 0 | M27: 17.27310991 | N27: 202.5 | O27: - | P27: =SUM(Tabel114[[#This Row],[Colosseum]:[OS til Nordhavnen 20XX]]) -> 830.1144104 | BI27: Plan | BJ27: 1.7 | BK27: 7.5 | BL27: 0.25 | BM27: 0.5 | BN27: 0.05 | BO27: 0.05 | BP27: 0.05 | BQ27: 0.05 | BR27: 0.25 | BS27: 0.05 | BT27: 0.05 | BU27: 0.05 | BV27: 0.25 | BW27: 0 | BX27: 4.4 | BY27: 15.2
B28: Strategi | C28: 3.465625 | D28: 3.470625 | E28: 9.336084906 | F28: 9.336084906 | G28: 8.931543255 | H28: 9.336084906 | I28: 511.6949286 | J28: 9.300905337 | K28: 13.39330368 | L28: 0 | M28: 18.13676541 | N28: 325 | O28: 650 | P28: =SUM(Tabel114[[#This Row],[Colosseum]:[OS til Nordhavnen 20XX]]) -> 1571.401951 | BI28: Strategi | BJ28: 0.8 | BK28: 0.75 | BL28: 0.02 | BM28: 0.06 | BN28: 0.005 | BO28: 0.005 | BP28: 0.005 | BQ28: 0.005 | BR28: 0.025 | BS28: 0.005 | BT28: 0.005 | BU28: 0.005 | BV28: 0.025 | BW28: 0 | BX28: 0.4 | BY28: =SUM(BJ28:BX28) -> 2.115
